[Event "34th MPL National U12G Chess-ch 2022"]
[Site "Mysore"]
[Date "2022.04.10"]
[Round "3.5"]
[White "Hiya Garg"]
[Black "Sherali Pattnaik"]
[Result "0-1"]
[ECO "B41"]
[WhiteElo "1062"]
[BlackElo "1209"]
[Annotator "NA RC"]
[PlyCount "112"]
[EventDate "2022.04.09"]
[EventCountry "IND"]
[SourceTitle "playchess.com"]
[Source "ChessBase"]
[SourceQuality "1"]
[TimeControl "5400+30"]

1. e4 {[%emt 0:00:02]} c5 {[%emt 0:00:03]} 2. Nf3 {[%emt 0:00:06]} e6 {[%emt 0:00:03]} 3. d4 {[%emt 0:00:10]} cxd4 {[%emt 0:00:03]} 4. Nxd4 {[%emt 0:00:08]} a6 {[%emt 0:00:02]} 5. f4 {[%emt 0:00:10]} d6 {[%emt 0:00:29]} 6. Nf3 {[%emt 0:00:21]} Nf6 {[%emt 0:07:00]} 7. e5 {[%emt 0:01:49]} dxe5 {[%emt 0:00:04]} 8. Qxd8+ {[%emt 0:00:09]} Kxd8 {[%emt 0:00:03]} 9. Nxe5 {[%emt 0:00:14]} Ke8 {[%emt 0:00:35]} 10. Nd2 {[%emt 0:00:48]} Nbd7 {[%emt 0:04:27]} 11. Ndf3 {[%emt 0:00:59]} b5 {[%emt 0:03:35]} 12. a4 {[%emt 0:00:15]} b4 {[%emt 0:03:56]} 13. Bd3 {[%emt 0:01:36]} Bc5 {[%emt 0:04:28]} 14. g4 {[%emt 0:01:54]} Bb7 {[%emt 0:01:08]} 15. Nxd7 {[%emt 0:04:30]} Kxd7 {[%emt 0:02:14]} 16. Ne5+ {[%emt 0:00:21]} Ke7 {[%emt 0:00:18]} 17. g5 {[%emt 0:01:22]} Bxh1 {[%emt 0:01:14]} 18. gxf6+ {[%emt 0:00:10]} gxf6 {[%emt 0:00:29]} 19. Nc4 {[%emt 0:00:44]} Rhg8 {[%emt 0:01:48]} 20. Be3 {[%emt 0:00:07]} Bxe3 {[%emt 0:00:08]} 21. Nxe3 {[%emt 0:00:10]} Rg1+ {[%emt 0:01:02]} 22. Nf1 {[%emt 0:00:24]} Rag8 {[%emt 0:01:09]} 23. O-O-O {[%emt 0:00:37]} Bf3 {[%emt 0:00:30]} 24. Re1 {[%emt 0:00:39]} Rh1 {[%emt 0:01:16]} 25. Kd2 {[%emt 0:09:13]} Rg2+ {[%emt 0:02:25]} 26. Ke3 {[%emt 0:00:32]} Bb7 {[%emt 0:00:35]} 27. Kd4 {[%emt 0:02:19]} Rgg1 {[%emt 0:01:53]} 28. Ke3 {[%emt 0:00:20]} Rxh2 {[%emt 0:02:46]} 29. Kd4 {[%emt 0:04:31]} Rf2 {[%emt 0:00:43]} 30. f5 {[%emt 0:03:33]} h5 {[%emt 0:01:15]} 31. fxe6 {[%emt 0:00:41]} fxe6 {[%emt 0:00:01]} 32. Bc4 {[%emt 0:00:21]} e5+ {[%emt 0:00:06]} 33. Kc5 {[%emt 0:01:42]} Rxc2 {[%emt 0:00:19]} 34. b3 {[%emt 0:00:18]} h4 {[%emt 0:01:07]} 35. Kb6 {[%emt 0:01:36]} Bg2 {[%emt 0:00:53]} 36. Ne3 {[%emt 0:00:17]} Rxe1 {[%emt 0:01:19]} 37. Nxc2 {[%emt 0:00:09]} Rc1 {[%emt 0:00:40]} 38. Nxb4 {[%emt 0:01:30]} h3 {[%emt 0:00:24]} 39. Nd5+ {[%emt 0:00:10]} Kd6 {[%emt 0:00:22]} 40. Ne3 {[%emt 0:00:12]} h2 {[%emt 0:00:28]} 41. Nf5+ {[%emt 0:00:07]} Kd7 {[%emt 0:00:12]} 42. Ng3 {[%emt 0:00:47]} Rc3 {[%emt 0:00:23]} 43. Ne2 {[%emt 0:00:14]} Rxc4 {[%emt 0:00:07]} 44. bxc4 {[%emt 0:02:01]} h1=Q {[%emt 0:00:07]} 45. Nc3 {[%emt 0:00:13]} Bb7 {[%emt 0:00:23]} 46. Ka7 {[%emt 0:00:33]} Qf3 {[%emt 0:00:27]} 47. Nd5 {[%emt 0:00:23]} Bxd5 {[%emt 0:00:05]} 48. cxd5 {[%emt 0:00:08]} Qxd5 {[%emt 0:00:03]} 49. a5 {[%emt 0:00:20]} Qxa5 {[%emt 0:00:30]} 50. Ka8 {[%emt 0:00:09]} Qe1 {[%emt 0:00:18]} 51. Ka7 {[%emt 0:00:07]} f5 {[%emt 0:00:08]} 52. Ka8 {[%emt 0:00:06]} f4 {[%emt 0:00:03]} 53. Ka7 {[%emt 0:00:08]} f3 {[%emt 0:00:31]} 54. Kxa6 {[%emt 0:00:07]} f2 {[%emt 0:00:03]} 55. Ka7 {[%emt 0:00:06]} f1=Q {[%emt 0:00:06]} 56. Ka8 {[%emt 0:00:07]} Qa6+ {[%emt 0:00:05]} 0-1

[Event "34th MPL National U12G Chess-ch 2022"]
[Site "Mysore"]
[Date "2022.04.10"]
[Round "3.6"]
[White "Sakthi Vaishnavi A K"]
[Black "Shriyana S Mallya"]
[Result "1/2-1/2"]
[ECO "C50"]
[WhiteElo "1009"]
[BlackElo "1277"]
[Annotator "NA RC"]
[PlyCount "122"]
[EventDate "2022.04.09"]
[EventCountry "IND"]
[SourceTitle "playchess.com"]
[Source "ChessBase"]
[SourceQuality "1"]
[TimeControl "5400+30"]

1. e4 {[%emt 0:00:01]} e5 {[%emt 0:00:14]} 2. Nf3 {[%emt 0:00:08]} Nc6 {[%emt 0:00:42]} 3. Bc4 {[%emt 0:00:15]} Bc5 {[%emt 0:00:34]} 4. d3 {[%emt 0:00:07]} h6 {[%emt 0:00:42]} 5. Nc3 {[%emt 0:00:13]} Nf6 {[%emt 0:00:19]} 6. h3 {[%emt 0:00:07]} d6 {[%emt 0:01:06]} 7. O-O {[%emt 0:01:54]} a6 {[%emt 0:00:26]} 8. Be3 {[%emt 0:00:21]} Ba7 {[%emt 0:00:53]} 9. Bxa7 {[%emt 0:00:36]} Rxa7 {[%emt 0:00:39]} 10. d4 {[%emt 0:01:07]} exd4 {[%emt 0:11:26]} 11. Nxd4 {[%emt 0:00:07]} Nxd4 {[%emt 0:00:34]} 12. Qxd4 {[%emt 0:00:09]} c5 {[%emt 0:00:16]} 13. Qd2 {[%emt 0:01:58]} b5 {[%emt 0:00:11]} 14. Bd5 {[%emt 0:01:00]} O-O {[%emt 0:02:13]} 15. a3 {[%emt 0:05:19]} Re7 {[%emt 0:02:56]} 16. Rad1 {[%emt 0:07:13]} Qc7 {[%emt 0:19:05]} 17. f3 {[%emt 0:16:02]} Rd8 {[%emt 0:06:46]} 18. Rfe1 {[%emt 0:04:10]} Red7 {[%emt 0:02:53]} 19. Qf4 {[%emt 0:11:58]} b4 {[%emt 0:05:08]} 20. Ne2 {[%emt 0:07:07]} bxa3 {[%emt 0:03:27]} 21. bxa3 {[%emt 0:01:03]} Re7 {[%emt 0:00:29]} 22. Ng3 {[%emt 0:04:33]} Qa5 {[%emt 0:02:21]} 23. Re3 {[%emt 0:04:53]} Re5 {[%emt 0:09:17]} 24. Red3 {[%emt 0:01:10]} Qb6 {[%emt 0:13:59]} 25. Bc4 {[%emt 0:05:13]} Ree8 {[%emt 0:02:48]} 26. Nh5 {[%emt 0:01:01]} Be6 {[%emt 0:03:02]} 27. Nxf6+ {[%emt 0:00:33]} gxf6 {[%emt 0:00:33]} 28. Bxe6 {[%emt 0:02:32]} c4+ {[%emt 0:00:53]} 29. Rd4 {[%emt 0:00:24]} fxe6 {[%emt 0:01:42]} 30. Qg4+ {[%emt 0:00:14]} Kh7 {[%emt 0:02:11]} 31. Kh1 {[%emt 0:00:20]} Qc5 {[%emt 0:01:00]} 32. e5 {[%emt 0:01:18]} Qxe5 {[%emt 0:02:41]} 33. Rxc4 {[%emt 0:00:14]} Re7 {[%emt 0:00:11]} 34. Re4 {[%emt 0:02:12]} f5 {[%emt 0:02:59]} 35. Rxe5 {[%emt 0:01:07]} fxg4 {[%emt 0:00:02]} 36. hxg4 {[%emt 0:00:17]} Kg6 {[%emt 0:00:25]} 37. Ra5 {[%emt 0:00:07]} Ra7 {[%emt 0:00:19]} 38. Kg1 {[%emt 0:00:07]} d5 {[%emt 0:00:09]} 39. Kf2 {[%emt 0:00:28]} Rc8 {[%emt 0:00:17]} 40. Rd2 {[%emt 0:00:18]} Rc3 {[%emt 0:00:12]} 41. f4 {[%emt 0:01:26]} Rf7 {[%emt 0:00:31]} 42. Rxa6 {[%emt 0:00:26]} Rxf4+ {[%emt 0:00:06]} 43. Ke2 {[%emt 0:00:45]} Rxg4 {[%emt 0:02:04]} 44. Rxe6+ {[%emt 0:04:02]} Kf5 {[%emt 0:00:06]} 45. Re8 {[%emt 0:01:09]} Rxg2+ {[%emt 0:00:19]} 46. Kd1 {[%emt 0:01:15]} Rxd2+ {[%emt 0:00:10]} 47. Kxd2 {[%emt 0:00:06]} Rxa3 {[%emt 0:00:03]} 48. Rh8 {[%emt 0:00:14]} Ra6 {[%emt 0:00:41]} 49. Kd3 {[%emt 0:00:11]} Kg5 {[%emt 0:00:29]} 50. Kd4 {[%emt 0:00:21]} Rc6 {[%emt 0:00:28]} 51. Rg8+ {[%emt 0:00:20]} Kh4 {[%emt 0:00:12]} 52. Rg2 {[%emt 0:00:10]} Rd6 {[%emt 0:00:32]} 53. Ke5 {[%emt 0:00:09]} Rd8 {[%emt 0:00:21]} 54. Rh2+ {[%emt 0:01:00]} Kg5 {[%emt 0:00:03]} 55. Rg2+ {[%emt 0:00:11]} Kh5 {[%emt 0:00:02]} 56. Kf5 {[%emt 0:01:30]} Kh4 {[%emt 0:02:59]} 57. Rh2+ {[%emt 0:00:10]} Kg3 {[%emt 0:00:07]} 58. Rxh6 {[%emt 0:00:06]} Kf3 {[%emt 0:00:03]} 59. Rh3+ {[%emt 0:00:27]} Ke2 {[%emt 0:00:11]} 60. Rd3 {[%emt 0:00:56]} Rc8 {[%emt 0:00:18]} 61. Rxd5 {[%emt 0:00:10]} Rxc2 {[%emt 0:00:12]} 1/2-1/2

[Event "34th MPL National U12G Chess-ch 2022"]
[Site "Mysore"]
[Date "2022.04.10"]
[Round "4.1"]
[White "Shubhi Gupta"]
[Black "Aadhya Jain"]
[Result "0-1"]
[ECO "A84"]
[WhiteElo "1434"]
[BlackElo "1128"]
[Annotator "NA RC"]
[PlyCount "140"]
[EventDate "2022.04.09"]
[EventCountry "IND"]
[SourceTitle "playchess.com"]
[Source "ChessBase"]
[SourceQuality "1"]
[TimeControl "5400+30"]

1. d4 {[%emt 0:00:31]} d5 {[%emt 0:00:07]} 2. c4 {[%emt 0:00:18]} e6 {[%emt 0:00:07]} 3. Nc3 {[%emt 0:00:33]} f5 {[%emt 0:00:11]} 4. Nf3 {[%emt 0:00:43]} Nf6 {[%emt 0:00:09]} 5. Bf4 {[%emt 0:00:49]} c6 {[%emt 0:00:11]} 6. e3 {[%emt 0:01:29]} Be7 {[%emt 0:00:16]} 7. Rc1 {[%emt 0:02:22]} O-O {[%emt 0:01:02]} 8. Bd3 {[%emt 0:01:02]} Ne4 {[%emt 0:00:35]} 9. O-O {[%emt 0:02:57]} Nd7 {[%emt 0:00:40]} 10. Ne5 {[%emt 0:04:30]} Bf6 {[%emt 0:03:25]} 11. Qe2 {[%emt 0:05:32]} Nxe5 {[%emt 0:02:09]} 12. Bxe5 {[%emt 0:00:22]} Bxe5 {[%emt 0:01:04]} 13. dxe5 {[%emt 0:00:12]} Qg5 {[%emt 0:06:42]} 14. f4 {[%emt 0:02:15]} Qg6 {[%emt 0:01:58]} 15. Bxe4 {[%emt 0:02:29]} fxe4 {[%emt 0:00:47]} 16. Kh1 {[%emt 0:02:21]} Bd7 {[%emt 0:01:56]} 17. Rcd1 {[%emt 0:02:33]} Rad8 {[%emt 0:01:08]} 18. Rg1 {[%emt 0:02:46]} Bc8 {[%emt 0:03:30]} 19. cxd5 {[%emt 0:06:27]} exd5 {[%emt 0:00:24]} 20. g4 {[%emt 0:00:49]} Qe6 {[%emt 0:02:05]} 21. Qg2 {[%emt 0:02:56]} b6 {[%emt 0:02:31]} 22. Qg3 {[%emt 0:01:16]} Rde8 {[%emt 0:00:45]} 23. Ne2 {[%emt 0:01:46]} c5 {[%emt 0:01:03]} 24. Nc3 {[%emt 0:01:29]} Bb7 {[%emt 0:00:29]} 25. Nb5 {[%emt 0:01:48]} Re7 {[%emt 0:08:21]} 26. Nd6 {[%emt 0:02:53]} Ba6 {[%emt 0:01:10]} 27. Rd2 {[%emt 0:05:57]} Bd3 {[%emt 0:01:33]} 28. b3 {[%emt 0:02:09]} d4 {[%emt 0:07:18]} 29. h3 {[%emt 0:04:24]} Qd5 {[%emt 0:01:38]} 30. Kh2 {[%emt 0:00:53]} a6 {[%emt 0:11:14]} 31. Re1 {[%emt 0:02:47]} b5 {[%emt 0:04:59]} 32. Qh4 {[%emt 0:04:41]} Rd7 {[%emt 0:03:03]} 33. Nf5 {[%emt 0:01:48]} Qe6 {[%emt 0:01:14]} 34. Qg3 {[%emt 0:01:47]} Kh8 {[%emt 0:01:58]} 35. Nd6 {[%emt 0:03:42]} Qd5 {[%emt 0:12:12]} 36. f5 {[%emt 0:09:20]} Rfd8 {[%emt 0:02:21]} 37. Rxd3 {[%emt 0:00:49]} exd3 {[%emt 0:00:17]} 38. e4 {[%emt 0:00:06]} Qc6 {[%emt 0:00:31]} 39. Qxd3 {[%emt 0:00:48]} Rxd6 {[%emt 0:00:24]} 40. exd6 {[%emt 0:00:12]} Qxd6+ {[%emt 0:01:08]} 41. e5 {[%emt 0:00:47]} Qc7 {[%emt 0:00:28]} 42. Qg3 {[%emt 0:01:09]} c4 {[%emt 0:01:59]} 43. bxc4 {[%emt 0:03:41]} bxc4 {[%emt 0:00:22]} 44. g5 {[%emt 0:01:46]} d3 {[%emt 0:00:27]} 45. Rd1 {[%emt 0:05:58]} c3 {[%emt 0:00:58]} 46. Rxd3 {[%emt 0:02:53]} Rxd3 {[%emt 0:00:13]} 47. Qxd3 {[%emt 0:00:02]} c2 {[%emt 0:00:07]} 48. Qa3 {[%emt 0:00:38]} Qxe5+ {[%emt 0:01:06]} 49. Kg2 {[%emt 0:00:18]} Qxf5 {[%emt 0:03:02]} 50. Qe3 {[%emt 0:01:07]} Qd5+ {[%emt 0:00:48]} 51. Kf2 {[%emt 0:00:30]} Qc6 {[%emt 0:00:59]} 52. Qc1 {[%emt 0:02:02]} h6 {[%emt 0:04:08]} 53. h4 {[%emt 0:03:38]} hxg5 {[%emt 0:01:07]} 54. hxg5 {[%emt 0:00:00]} Kh7 {[%emt 0:02:06]} 55. Ke2 {[%emt 0:00:00]} Kg6 {[%emt 0:00:18]} 56. Kd3 {[%emt 0:00:00]} Qd5+ {[%emt 0:00:21]} 57. Kxc2 {[%emt 0:00:00]} Qc4+ {[%emt 0:00:05]} 58. Kd2 {[%emt 0:00:00]} Qxc1+ {[%emt 0:00:05]} 59. Kxc1 {[%emt 0:00:00]} Kxg5 {[%emt 0:00:09]} 60. Kd2 {[%emt 0:00:00]} Kf4 {[%emt 0:00:08]} 61. Ke2 {[%emt 0:00:00]} Kg3 {[%emt 0:01:05]} 62. Kf1 {[%emt 0:00:00]} Kh2 {[%emt 0:00:18]} 63. Kf2 {[%emt 0:00:00]} g5 {[%emt 0:00:17]} 64. Kf3 {[%emt 0:00:00]} Kh3 {[%emt 0:00:06]} 65. Kf2 {[%emt 0:00:00]} g4 {[%emt 0:00:06]} 66. Kg1 {[%emt 0:00:00]} Kg3 {[%emt 0:00:10]} 67. Kh1 {[%emt 0:00:00]} Kf2 {[%emt 0:00:09]} 68. a3 {[%emt 0:00:00]} g3 {[%emt 0:00:06]} 69. a4 {[%emt 0:00:00]} g2+ {[%emt 0:00:04]} 70. Kh2 {[%emt 0:00:00]} g1=Q+ {[%emt 0:00:08]} 0-1

[Event "34th MPL National U12G Chess-ch 2022"]
[Site "Mysore"]
[Date "2022.04.10"]
[Round "4.2"]
[White "Kalyani Sirin"]
[Black "Krupha S Ukkali"]
[Result "1-0"]
[ECO "B79"]
[WhiteElo "1243"]
[BlackElo "1223"]
[Annotator "NA RC"]
[PlyCount "51"]
[EventDate "2022.04.09"]
[EventCountry "IND"]
[SourceTitle "playchess.com"]
[Source "ChessBase"]
[SourceQuality "1"]
[TimeControl "5400+30"]

1. e4 {[%emt 0:00:03]} c5 {[%emt 0:00:13]} 2. Nf3 {[%emt 0:00:10]} d6 {[%emt 0:00:27]} 3. d4 {[%emt 0:00:09]} cxd4 {[%emt 0:00:26]} 4. Nxd4 {[%emt 0:00:09]} Nf6 {[%emt 0:00:53]} 5. Nc3 {[%emt 0:00:09]} g6 {[%emt 0:00:56]} 6. Be3 {[%emt 0:00:34]} Bg7 {[%emt 0:01:10]} 7. f3 {[%emt 0:01:01]} O-O {[%emt 0:00:51]} 8. Bc4 {[%emt 0:00:15]} Nc6 {[%emt 0:01:11]} 9. Qd2 {[%emt 0:00:26]} Bd7 {[%emt 0:01:17]} 10. O-O-O {[%emt 0:00:31]} Qa5 {[%emt 0:00:48]} 11. Kb1 {[%emt 0:01:02]} Rfc8 {[%emt 0:05:49]} 12. Bb3 {[%emt 0:01:29]} Ne5 {[%emt 0:02:33]} 13. h4 {[%emt 0:04:38]} Nc4 {[%emt 0:05:25]} 14. Bxc4 {[%emt 0:00:10]} Rxc4 {[%emt 0:00:25]} 15. g4 {[%emt 0:00:45]} Rac8 {[%emt 0:05:10]} 16. h5 {[%emt 0:01:13]} a6 {[%emt 0:06:08]} 17. hxg6 {[%emt 0:01:08]} fxg6 {[%emt 0:00:46]} 18. Bh6 {[%emt 0:12:48]} Bh8 {[%emt 0:03:19]} 19. Nb3 {[%emt 0:08:31]} Qc7 {[%emt 0:05:07]} 20. Bg5 {[%emt 0:03:04]} Bc6 {[%emt 0:17:56]} 21. Bxf6 {[%emt 0:06:49]} Bxf6 {[%emt 0:02:05]} 22. Nd5 {[%emt 0:00:35]} Bxd5 {[%emt 0:00:33]} 23. Qxd5+ {[%emt 0:00:18]} Kg7 {[%emt 0:03:42]} 24. g5 {[%emt 0:00:29]} Be5 {[%emt 0:02:21]} 25. Rh5 {[%emt 0:56:34]} h6 26. Rxh6 {[%emt 0:00:00]} 1-0

[Event "34th MPL National U12G Chess-ch 2022"]
[Site "Mysore"]
[Date "2022.04.10"]
[Round "4.3"]
[White "Dheeptha B"]
[Black "Prishita Gupta"]
[Result "0-1"]
[ECO "D02"]
[WhiteElo "1236"]
[BlackElo "1412"]
[Annotator "NA RC"]
[PlyCount "110"]
[EventDate "2022.04.09"]
[EventCountry "IND"]
[SourceTitle "playchess.com"]
[Source "ChessBase"]
[SourceQuality "1"]
[TimeControl "5400+30"]

1. d4 {[%emt 0:00:02]} d5 {[%emt 0:00:03]} 2. Bf4 {[%emt 0:00:08]} Nf6 {[%emt 0:00:03]} 3. Nf3 {[%emt 0:00:14]} e6 {[%emt 0:00:04]} 4. e3 {[%emt 0:00:09]} Bd6 {[%emt 0:00:02]} 5. Bg3 {[%emt 0:00:08]} c6 {[%emt 0:00:05]} 6. c3 {[%emt 0:00:04]} Qc7 {[%emt 0:00:04]} 7. Bd3 {[%emt 0:00:12]} Nbd7 {[%emt 0:00:04]} 8. Nbd2 {[%emt 0:00:14]} e5 {[%emt 0:00:23]} 9. dxe5 {[%emt 0:00:38]} Nxe5 {[%emt 0:00:12]} 10. Nxe5 {[%emt 0:00:31]} Bxe5 {[%emt 0:00:07]} 11. Nf3 {[%emt 0:00:17]} Bd6 {[%emt 0:00:32]} 12. Qc2 {[%emt 0:00:26]} Bd7 {[%emt 0:01:45]} 13. e4 {[%emt 0:04:34]} dxe4 {[%emt 0:00:15]} 14. Bxe4 {[%emt 0:00:11]} O-O {[%emt 0:00:22]} 15. O-O-O {[%emt 0:01:56]} Bf4+ {[%emt 0:00:33]} 16. Kb1 {[%emt 0:00:49]} g6 {[%emt 0:01:32]} 17. Rd2 {[%emt 0:05:33]} Bxg3 {[%emt 0:00:23]} 18. hxg3 {[%emt 0:00:49]} Nxe4 {[%emt 0:00:07]} 19. Rxd7 {[%emt 0:05:54]} Qxd7 {[%emt 0:00:15]} 20. Qxe4 {[%emt 0:00:10]} Qf5 {[%emt 0:00:29]} 21. Qxf5 {[%emt 0:00:25]} gxf5 {[%emt 0:00:06]} 22. Nd4 {[%emt 0:03:09]} Rad8 {[%emt 0:00:57]} 23. Nxf5 {[%emt 0:01:20]} Rd2 {[%emt 0:00:05]} 24. Rf1 {[%emt 0:04:19]} Re8 {[%emt 0:00:43]} 25. Ne3 {[%emt 0:03:06]} Red8 {[%emt 0:02:11]} 26. Kc1 {[%emt 0:04:02]} Re2 {[%emt 0:00:38]} 27. Nc4 {[%emt 0:06:20]} b5 {[%emt 0:01:22]} 28. Na5 {[%emt 0:01:20]} Rdd2 {[%emt 0:00:05]} 29. Nxc6 {[%emt 0:01:12]} Rc2+ {[%emt 0:00:20]} 30. Kd1 {[%emt 0:01:59]} Rxb2 {[%emt 0:00:23]} 31. Nxa7 {[%emt 0:00:44]} Rxa2 {[%emt 0:00:04]} 32. Nxb5 {[%emt 0:01:13]} Reb2 {[%emt 0:00:06]} 33. Kc1 {[%emt 0:06:23]} Rxb5 {[%emt 0:00:20]} 34. Rd1 {[%emt 0:03:24]} Ra1+ {[%emt 0:00:13]} 35. Kc2 {[%emt 0:00:30]} Rb2+ {[%emt 0:00:06]} 36. Kxb2 {[%emt 0:00:14]} Rxd1 {[%emt 0:00:16]} 37. Kb3 {[%emt 0:00:25]} Rd2 {[%emt 0:00:15]} 38. Kb4 {[%emt 0:01:05]} Rxf2 {[%emt 0:00:14]} 39. c4 {[%emt 0:00:19]} Rxg2 {[%emt 0:00:05]} 40. c5 {[%emt 0:00:18]} Rxg3 {[%emt 0:00:07]} 41. c6 {[%emt 0:00:16]} Rg1 {[%emt 0:00:04]} 42. Kb5 {[%emt 0:00:17]} Rc1 {[%emt 0:00:05]} 43. Kb6 {[%emt 0:00:09]} h5 {[%emt 0:00:07]} 44. c7 {[%emt 0:00:13]} h4 {[%emt 0:01:40]} 45. Kb7 {[%emt 0:00:13]} h3 {[%emt 0:00:28]} 46. c8=Q+ {[%emt 0:00:14]} Rxc8 {[%emt 0:00:37]} 47. Kxc8 {[%emt 0:00:04]} h2 {[%emt 0:00:15]} 48. Kd7 {[%emt 0:00:10]} h1=Q {[%emt 0:00:49]} 49. Ke7 {[%emt 0:00:19]} Qc6 {[%emt 0:00:16]} 50. Kd8 {[%emt 0:00:19]} f5 {[%emt 0:00:14]} 51. Ke7 {[%emt 0:00:08]} f4 {[%emt 0:00:32]} 52. Kd8 {[%emt 0:00:08]} f3 {[%emt 0:00:29]} 53. Ke7 {[%emt 0:00:12]} f2 {[%emt 0:00:34]} 54. Kd8 {[%emt 0:00:09]} f1=Q {[%emt 0:00:30]} 55. Ke7 {[%emt 0:00:10]} Qff6# {[%emt 0:00:24]} 0-1

[Event "34th MPL National U12G Chess-ch 2022"]
[Site "Mysore"]
[Date "2022.04.10"]
[Round "4.4"]
[White "Sherali Pattnaik"]
[Black "Theephigaa K P"]
[Result "1-0"]
[ECO "C45"]
[WhiteElo "1209"]
[BlackElo "1086"]
[Annotator "NA RC"]
[PlyCount "83"]
[EventDate "2022.04.09"]
[EventCountry "IND"]
[SourceTitle "playchess.com"]
[Source "ChessBase"]
[SourceQuality "1"]
[TimeControl "5400+30"]

1. e4 {[%emt 0:00:02]} e5 {[%emt 0:00:08]} 2. Nf3 {[%emt 0:00:03]} Nc6 {[%emt 0:01:09]} 3. d4 {[%emt 0:00:35]} exd4 {[%emt 0:00:38]} 4. Nxd4 {[%emt 0:00:04]} Nf6 {[%emt 0:00:32]} 5. Nxc6 {[%emt 0:00:06]} bxc6 {[%emt 0:00:17]} 6. e5 {[%emt 0:00:03]} Qe7 {[%emt 0:00:28]} 7. Qe2 {[%emt 0:00:02]} Nd5 {[%emt 0:00:24]} 8. c4 {[%emt 0:00:00]} Ba6 {[%emt 0:00:15]} 9. b3 {[%emt 0:00:13]} O-O-O {[%emt 0:20:38]} 10. f4 {[%emt 0:04:35]} g6 {[%emt 0:11:06]} 11. Qf2 {[%emt 0:12:43]} Nb6 {[%emt 0:04:12]} 12. c5 {[%emt 0:05:15]} Bb5 {[%emt 0:56:43]} 13. Be2 Bxe2 {[%emt 0:00:00]} 14. cxb6 {[%emt 0:00:43]} Ba6 {[%emt 0:00:00]} 15. bxc7 {[%emt 0:04:18]} Qb4+ {[%emt 0:00:00]} 16. Bd2 {[%emt 0:01:38]} Qe4+ {[%emt 0:00:00]} 17. Kd1 {[%emt 0:00:08]} Kxc7 {[%emt 0:00:00]} 18. Qxa7+ {[%emt 0:02:18]} Bb7 {[%emt 0:00:00]} 19. Ba5+ {[%emt 0:01:01]} Kc8 {[%emt 0:00:00]} 20. Nd2 {[%emt 0:02:26]} Qxg2 {[%emt 0:00:00]} 21. Qb6 {[%emt 0:00:03]} Qg4+ {[%emt 0:00:00]} 22. Kc2 {[%emt 0:04:14]} Qf5+ {[%emt 0:00:00]} 23. Kb2 {[%emt 0:00:32]} Bd6 {[%emt 0:00:00]} 24. exd6 {[%emt 0:00:01]} Qf6+ {[%emt 0:00:00]} 25. Bc3 {[%emt 0:00:30]} Qxd6 {[%emt 0:00:00]} 26. Rad1 {[%emt 0:00:39]} Qxf4 {[%emt 0:00:00]} 27. Bxh8 {[%emt 0:00:31]} Rxh8 {[%emt 0:00:07]} 28. Nc4 {[%emt 0:00:17]} Qf6+ {[%emt 0:00:35]} 29. Ka3 {[%emt 0:00:18]} d5 {[%emt 0:00:57]} 30. Rxd5 {[%emt 0:00:45]} Qe7+ {[%emt 0:00:48]} 31. Rd6 {[%emt 0:01:48]} f5 {[%emt 0:01:42]} 32. Rhd1 {[%emt 0:00:30]} f4 {[%emt 0:00:32]} 33. Ka4 {[%emt 0:00:27]} Qc7 {[%emt 0:01:29]} 34. Qxc7+ {[%emt 0:00:48]} Kxc7 {[%emt 0:00:02]} 35. Rd7+ {[%emt 0:00:03]} Kb8 {[%emt 0:00:20]} 36. Na5 {[%emt 0:00:55]} Ba6 {[%emt 0:01:52]} 37. Nxc6+ {[%emt 0:00:03]} Kc8 {[%emt 0:00:12]} 38. Ka5 {[%emt 0:00:04]} Be2 {[%emt 0:01:52]} 39. R1d2 {[%emt 0:00:00]} f3 {[%emt 0:00:20]} 40. Kb6 {[%emt 0:00:17]} f2 {[%emt 0:01:11]} 41. Rd8+ {[%emt 0:00:10]} Rxd8 {[%emt 0:00:17]} 42. Rxd8# {[%emt 0:00:03]} 1-0